[Event "Early-Titled-Tuesday-Blitz-September-12-2023"]
[Site "Chess.com"]
[Date "2023.09.12"]
[Round "7"]
[White "Grandmaster1369"]
[Black "Sleepless_Knightmare"]
[Result "1-0"]
[WhiteElo "2572"]
[BlackElo "2423"]
[TimeControl "180+1"]
[EndTime "9:17:44 PDT"]
[Termination "Grandmaster1369 won by resignation"]

1. e4 {[%clk 0:02:59.7]} 1... c5 {[%clk 0:02:58.5]} 2. Nf3 {[%clk 0:02:59.2]}
2... e6 {[%clk 0:02:58.1]} 3. g3 {[%clk 0:02:59.5]} 3... a6 {[%clk 0:02:55.7]}
4. Bg2 {[%clk 0:02:59.6]} 4... b5 {[%clk 0:02:51.6]} 5. O-O {[%clk 0:03:00]}
5... Bb7 {[%clk 0:02:47.9]} 6. Re1 {[%clk 0:03:00.5]} 6... Nc6 {[%clk
0:02:34.9]} 7. c3 {[%clk 0:02:59.5]} 7... Rc8 {[%clk 0:02:30.6]} 8. d4 {[%clk
0:02:59.5]} 8... cxd4 {[%clk 0:02:29.2]} 9. cxd4 {[%clk 0:03:00.4]} 9... Nb4
{[%clk 0:02:27.5]} 10. Nc3 {[%clk 0:02:58.7]} 10... d5 {[%clk 0:02:26.1]} 11. a3
{[%clk 0:02:53.6]} 11... dxe4 {[%clk 0:02:25.5]} 12. Ng5 {[%clk 0:02:53.9]}
12... Nd3 {[%clk 0:02:23.4]} 13. Bxe4 {[%clk 0:02:39.3]} 13... Bxe4 {[%clk
0:02:15.2]} 14. Rxe4 {[%clk 0:02:38]} 14... Nxc1 {[%clk 0:02:13.6]} 15. Qxc1
{[%clk 0:02:01.7]} 15... Nf6 {[%clk 0:01:54]} 16. Re2 {[%clk 0:02:00]} 16...
Qxd4 {[%clk 0:01:51.5]} 17. Qe1 {[%clk 0:01:54.4]} 17... Be7 {[%clk 0:01:49.4]}
18. Rd1 {[%clk 0:01:51.5]} 18... Qa7 {[%clk 0:01:46.3]} 19. Rxe6 {[%clk
0:01:16.9]} 19... fxe6 {[%clk 0:01:46.1]} 20. Nxe6 {[%clk 0:01:17.8]} 20... Kf7
{[%clk 0:01:42.8]} 21. Ng5+ {[%clk 0:01:17.8]} 21... Kg6 {[%clk 0:01:36]} 22. h4
{[%clk 0:01:07.7]} 22... Bc5 {[%clk 0:01:34.1]} 23. Qe2 {[%clk 0:00:54.4]} 23...
Bxf2+ {[%clk 0:01:24.6]} 24. Kg2 {[%clk 0:00:54.9]} 24... Rhd8 {[%clk
0:01:21.3]} 25. Qc2+ {[%clk 0:00:54.1]} 25... Kh5 {[%clk 0:01:19]} 26. Qe2+
{[%clk 0:00:51]} 26... Ng4 {[%clk 0:01:17.1]} 27. Kh3 {[%clk 0:00:47.4]} 27...
Rd4 {[%clk 0:01:08.7]} 28. Nce4 {[%clk 0:00:36]} 28... Qd7 {[%clk 0:01:08.6]}
29. Nxf2 {[%clk 0:00:25.8]} 29... Rxd1 {[%clk 0:01:06.3]} 30. Nxd1 {[%clk
0:00:19.5]} 30... Rc4 {[%clk 0:01:04.5]} 31. Ne3 {[%clk 0:00:18.8]} 31... Qe7
{[%clk 0:01:00.9]} 32. Qf3 {[%clk 0:00:15.7]} 32... Qd7 {[%clk 0:00:45.6]} 33.
Nxg4 {[%clk 0:00:12.3]} 33... Rxg4 {[%clk 0:00:44.8]} 34. Ne4 {[%clk 0:00:09.3]}
34... g5 {[%clk 0:00:27.9]} 35. Nf6+ {[%clk 0:00:09.3]} 35... Kg6 {[%clk
0:00:25.2]} 36. Nxd7 {[%clk 0:00:09.9]} 1-0

[Event "Early-Titled-Tuesday-Blitz-September-12-2023"]
[Site "Chess.com"]
[Date "2023.09.12"]
[Round "7"]
[White "santosalberto1987"]
[Black "Iunusovnuriddin"]
[Result "1-0"]
[WhiteElo "2549"]
[BlackElo "2350"]
[TimeControl "180+1"]
[EndTime "9:17:44 PDT"]
[Termination "santosalberto1987 won by resignation"]

1. e4 {[%clk 0:03:00.9]} 1... e6 {[%clk 0:02:51]} 2. d4 {[%clk 0:03:00.7]} 2...
d5 {[%clk 0:02:51.5]} 3. Nc3 {[%clk 0:03:01.2]} 3... Nf6 {[%clk 0:02:50.1]} 4.
e5 {[%clk 0:03:01.2]} 4... Nfd7 {[%clk 0:02:50.7]} 5. Nce2 {[%clk 0:03:01.7]}
5... c5 {[%clk 0:02:50.9]} 6. c3 {[%clk 0:03:01.9]} 6... Nc6 {[%clk 0:02:50.6]}
7. Nf3 {[%clk 0:03:01.9]} 7... b5 {[%clk 0:02:50.2]} 8. a3 {[%clk 0:03:01.3]}
8... Qb6 {[%clk 0:02:43]} 9. Nf4 {[%clk 0:03:00.3]} 9... b4 {[%clk 0:02:36.5]}
10. axb4 {[%clk 0:03:00]} 10... cxb4 {[%clk 0:02:36.5]} 11. Bd3 {[%clk
0:02:57.7]} 11... Na5 {[%clk 0:01:57.5]} 12. Ng5 {[%clk 0:02:53.9]} 12... g6
{[%clk 0:01:41.9]} 13. Qf3 {[%clk 0:02:48.2]} 13... Be7 {[%clk 0:01:41.3]} 14.
Nxf7 {[%clk 0:02:45.9]} 14... Rf8 {[%clk 0:01:18.5]} 15. Nh6 {[%clk 0:02:33.1]}
15... Nb3 {[%clk 0:01:10.1]} 16. Rb1 {[%clk 0:02:23.2]} 16... Nxc1 {[%clk
0:01:09.7]} 17. Rxc1 {[%clk 0:02:23.4]} 17... Bg5 {[%clk 0:01:09.3]} 18. g3
{[%clk 0:01:44.9]} 18... Bxh6 {[%clk 0:00:58.4]} 19. Qg4 {[%clk 0:01:43.8]}
19... Bxf4 {[%clk 0:00:44.1]} 20. gxf4 {[%clk 0:01:44.7]} 20... bxc3 {[%clk
0:00:44.6]} 21. bxc3 {[%clk 0:01:44.1]} 21... Qb2 {[%clk 0:00:44.6]} 22. O-O
{[%clk 0:01:41.5]} 22... Qd2 {[%clk 0:00:44.1]} 23. Qxe6+ {[%clk 0:01:34.3]}
23... Kd8 {[%clk 0:00:41.4]} 24. Bb5 {[%clk 0:01:32.2]} 24... Qxf4 {[%clk
0:00:36.6]} 25. f3 {[%clk 0:01:21.8]} 25... Rb8 {[%clk 0:00:28]} 26. Qxd5 {[%clk
0:01:15.4]} 26... a6 {[%clk 0:00:16.3]} 27. Bxd7 {[%clk 0:01:03.2]} 27... Qg5+
{[%clk 0:00:16.7]} 28. Kh1 {[%clk 0:01:00.8]} 28... Bxd7 {[%clk 0:00:16.7]} 29.
Qd6 {[%clk 0:00:59.7]} 29... Rb2 {[%clk 0:00:06.7]} 30. Qxf8+ {[%clk 0:00:59.1]}
30... Be8 {[%clk 0:00:06.5]} 31. Qf6+ {[%clk 0:00:52.2]} 31... Qxf6 {[%clk
0:00:02.8]} 32. exf6 {[%clk 0:00:53.1]} 32... Rb6 {[%clk 0:00:02.7]} 33. c4
{[%clk 0:00:50.1]} 33... Rxf6 {[%clk 0:00:02.9]} 34. d5 {[%clk 0:00:49.7]} 34...
a5 {[%clk 0:00:03.5]} 35. c5 {[%clk 0:00:49.2]} 35... a4 {[%clk 0:00:03.8]} 36.
Kg2 {[%clk 0:00:46.9]} 36... Kc7 {[%clk 0:00:02.8]} 37. Rfe1 {[%clk 0:00:44.9]}
37... Bb5 {[%clk 0:00:03.4]} 38. Re7+ {[%clk 0:00:44.1]} 38... Kd8 {[%clk
0:00:04]} 39. d6 {[%clk 0:00:41.2]} 1-0

[Event "Early-Titled-Tuesday-Blitz-September-12-2023"]
[Site "Chess.com"]
[Date "2023.09.12"]
[Round "7"]
[White "tptagain"]
[Black "econpower"]
[Result "0-1"]
[WhiteElo "2914"]
[BlackElo "2773"]
[TimeControl "180+1"]
[EndTime "9:17:46 PDT"]
[Termination "econpower won by resignation"]

1. Nf3 {[%clk 0:03:00.9]} 1... g6 {[%clk 0:03:00]} 2. e4 {[%clk 0:03:00]} 2...
Bg7 {[%clk 0:03:00.9]} 3. d4 {[%clk 0:02:59.2]} 3... d6 {[%clk 0:03:00.3]} 4. c3
{[%clk 0:02:58.7]} 4... Nd7 {[%clk 0:02:59.5]} 5. Bd3 {[%clk 0:02:58.8]} 5... e5
{[%clk 0:02:59.3]} 6. O-O {[%clk 0:02:59.4]} 6... Ne7 {[%clk 0:02:59.7]} 7. Re1
{[%clk 0:02:59.5]} 7... O-O {[%clk 0:03:00.1]} 8. Nbd2 {[%clk 0:02:55.8]} 8...
c6 {[%clk 0:02:59.7]} 9. a4 {[%clk 0:02:55.4]} 9... Qc7 {[%clk 0:02:59.6]} 10.
Bf1 {[%clk 0:02:51.6]} 10... Rd8 {[%clk 0:02:57.4]} 11. a5 {[%clk 0:02:47.3]}
11... Rb8 {[%clk 0:02:56]} 12. Nc4 {[%clk 0:02:36.3]} 12... Nf8 {[%clk
0:02:55.3]} 13. Be3 {[%clk 0:02:21.3]} 13... b5 {[%clk 0:02:36.4]} 14. axb6
{[%clk 0:02:19.1]} 14... axb6 {[%clk 0:02:36.9]} 15. b4 {[%clk 0:02:09.1]} 15...
d5 {[%clk 0:02:18.8]} 16. Ncxe5 {[%clk 0:01:53.3]} 16... dxe4 {[%clk 0:02:16.6]}
17. Nd2 {[%clk 0:01:31.9]} 17... Nd5 {[%clk 0:02:12.5]} 18. Qb3 {[%clk
0:01:25.7]} 18... Bxe5 {[%clk 0:02:06.3]} 19. dxe5 {[%clk 0:01:22.7]} 19... Nxe3
{[%clk 0:02:06.1]} 20. Nxe4 {[%clk 0:01:20.2]} 20... Nxf1 {[%clk 0:02:01.3]} 21.
Nf6+ {[%clk 0:01:20.5]} 21... Kg7 {[%clk 0:02:00.2]} 22. Kxf1 {[%clk 0:01:21.4]}
22... Be6 {[%clk 0:01:55.6]} 23. Qc2 {[%clk 0:01:21.2]} 23... Nd7 {[%clk
0:01:55]} 24. Qc1 {[%clk 0:01:12.4]} 24... h6 {[%clk 0:01:47.6]} 25. Qf4 {[%clk
0:01:11.2]} 25... Rb7 {[%clk 0:01:40.2]} 26. Rad1 {[%clk 0:01:07.3]} 26... Rf8
{[%clk 0:01:25.4]} 27. Rd6 {[%clk 0:00:21.5]} 27... Nxf6 {[%clk 0:01:12.6]} 28.
exf6+ {[%clk 0:00:22.4]} 28... Kh7 {[%clk 0:01:12.8]} 29. h4 {[%clk 0:00:21.3]}
29... h5 {[%clk 0:01:06.9]} 30. Red1 {[%clk 0:00:14.3]} 30... Rd8 {[%clk
0:01:00.2]} 31. Qe5 {[%clk 0:00:13.1]} 31... Rxd6 {[%clk 0:00:59.8]} 32. Rxd6
{[%clk 0:00:14]} 32... Ra7 {[%clk 0:00:48.2]} 33. f3 {[%clk 0:00:14.6]} 33... b5
{[%clk 0:00:40.9]} 34. Kg1 {[%clk 0:00:14.2]} 34... Qc8 {[%clk 0:00:32.9]} 35.
Kh2 {[%clk 0:00:14.3]} 35... Rd7 {[%clk 0:00:32]} 36. Rxe6 {[%clk 0:00:13.2]}
36... fxe6 {[%clk 0:00:32]} 37. Qxe6 {[%clk 0:00:13.7]} 37... Qc7+ {[%clk
0:00:32.6]} 38. Kg1 {[%clk 0:00:13.5]} 38... Rf7 {[%clk 0:00:33.2]} 39. Kf2
{[%clk 0:00:11.7]} 39... Qd7 {[%clk 0:00:33.5]} 40. Qe5 {[%clk 0:00:11.2]} 40...
Qf5 {[%clk 0:00:33]} 0-1

[Event "Early-Titled-Tuesday-Blitz-September-12-2023"]
[Site "Chess.com"]
[Date "2023.09.12"]
[Round "7"]
[White "ckgchess"]
[Black "wonderfultime"]
[Result "1/2-1/2"]
[WhiteElo "2873"]
[BlackElo "2995"]
[TimeControl "180+1"]
[EndTime "9:17:47 PDT"]
[Termination "Game drawn by agreement"]

1. e4 {[%clk 0:03:00.9]} 1... e5 {[%clk 0:02:57.7]} 2. Nc3 {[%clk 0:03:00.9]}
2... Nf6 {[%clk 0:02:53.6]} 3. f4 {[%clk 0:03:01.2]} 3... d5 {[%clk 0:02:49.7]}
4. fxe5 {[%clk 0:03:01.7]} 4... Nxe4 {[%clk 0:02:49.7]} 5. Qf3 {[%clk
0:03:02.3]} 5... Nc6 {[%clk 0:02:50.2]} 6. Bb5 {[%clk 0:03:01.9]} 6... Bc5
{[%clk 0:02:30.3]} 7. Nxe4 {[%clk 0:02:36.9]} 7... dxe4 {[%clk 0:02:28.8]} 8.
Qxe4 {[%clk 0:02:37.8]} 8... O-O {[%clk 0:02:25.7]} 9. c3 {[%clk 0:01:53.9]}
9... Bxg1 {[%clk 0:01:57.8]} 10. Rxg1 {[%clk 0:01:49.4]} 10... Nxe5 {[%clk
0:01:53.1]} 11. Qxe5 {[%clk 0:01:39.8]} 11... c6 {[%clk 0:01:51.3]} 12. Be2
{[%clk 0:01:40]} 12... Re8 {[%clk 0:01:00.7]} 13. Qg3 {[%clk 0:01:40]} 13... Bf5
{[%clk 0:00:40.8]} 14. Kd1 {[%clk 0:01:35.2]} 14... Qd5 {[%clk 0:00:34.6]} 15.
Re1 {[%clk 0:01:25.2]} 15... Rad8 {[%clk 0:00:34.5]} 16. d4 {[%clk 0:01:04.6]}
16... Qe4 {[%clk 0:00:28.6]} 17. Qd3 {[%clk 0:00:40.2]} 17... Qxd3+ {[%clk
0:00:28.8]} 18. Bxd3 {[%clk 0:00:41.1]} 18... Bxd3 {[%clk 0:00:29.7]} 19. Bf4
{[%clk 0:00:35.2]} 19... Be4 {[%clk 0:00:25.4]} 20. g3 {[%clk 0:00:33.7]} 20...
c5 {[%clk 0:00:25.9]} 21. Be3 {[%clk 0:00:32.8]} 21... f6 {[%clk 0:00:20.8]} 22.
Kd2 {[%clk 0:00:33.2]} 22... Kf7 {[%clk 0:00:20.6]} 23. Bg1 {[%clk 0:00:32.6]}
23... h5 {[%clk 0:00:19.3]} 24. Rf1 {[%clk 0:00:27.7]} 24... Bg2 {[%clk
0:00:16.9]} 25. Rfe1 {[%clk 0:00:25.6]} 25... Be4 {[%clk 0:00:17]} 26. Rf1
{[%clk 0:00:26]} 26... Bd5 {[%clk 0:00:15.8]} 27. b3 {[%clk 0:00:25]} 27... cxd4
{[%clk 0:00:15.6]} 28. Bxd4 {[%clk 0:00:25.9]} 28... a5 {[%clk 0:00:11.7]} 29.
Rae1 {[%clk 0:00:26.3]} 29... a4 {[%clk 0:00:11.6]} 30. Rxe8 {[%clk 0:00:26.6]}
30... Rxe8 {[%clk 0:00:12.5]} 31. c4 {[%clk 0:00:26.1]} 31... Bc6 {[%clk
0:00:12.7]} 32. Re1 {[%clk 0:00:22.1]} 32... Rxe1 {[%clk 0:00:09.4]} 33. Kxe1
{[%clk 0:00:23]} 33... axb3 {[%clk 0:00:10.2]} 34. axb3 {[%clk 0:00:23.9]} 34...
b5 {[%clk 0:00:09]} 1/2-1/2

[Event "Early-Titled-Tuesday-Blitz-September-12-2023"]
[Site "Chess.com"]
[Date "2023.09.12"]
[Round "7"]
[White "mitrabhaa"]
[Black "Jospem"]
[Result "0-1"]
[WhiteElo "2862"]
[BlackElo "3100"]
[TimeControl "180+1"]
[EndTime "9:17:49 PDT"]
[Termination "Jospem won by resignation"]

1. Nf3 {[%clk 0:02:44]} 1... Nf6 {[%clk 0:03:00.5]} 2. c4 {[%clk 0:02:42.5]}
2... g6 {[%clk 0:03:00.7]} 3. g3 {[%clk 0:02:42.8]} 3... Bg7 {[%clk 0:03:01.6]}
4. Bg2 {[%clk 0:02:43.4]} 4... O-O {[%clk 0:03:02.5]} 5. O-O {[%clk 0:02:44.1]}
5... c6 {[%clk 0:03:03.4]} 6. Nc3 {[%clk 0:02:44.3]} 6... d6 {[%clk 0:03:04.3]}
7. d4 {[%clk 0:02:44.5]} 7... Bf5 {[%clk 0:03:04.9]} 8. b3 {[%clk 0:02:43.4]}
8... Ne4 {[%clk 0:03:05]} 9. Bb2 {[%clk 0:02:44.1]} 9... Nxc3 {[%clk 0:03:02]}
10. Bxc3 {[%clk 0:02:45]} 10... Be4 {[%clk 0:03:02.4]} 11. Qd2 {[%clk
0:02:40.6]} 11... Nd7 {[%clk 0:02:58.7]} 12. Rac1 {[%clk 0:02:34.9]} 12... a5
{[%clk 0:02:54.3]} 13. a4 {[%clk 0:02:30.8]} 13... Qb6 {[%clk 0:02:53.7]} 14.
Qb2 {[%clk 0:02:28.9]} 14... d5 {[%clk 0:02:53.6]} 15. Rfd1 {[%clk 0:02:25.3]}
15... Qa6 {[%clk 0:02:53.5]} 16. Bh3 {[%clk 0:02:21.1]} 16... Bxf3 {[%clk
0:02:16.4]} 17. Bxd7 {[%clk 0:02:20.1]} 17... Be4 {[%clk 0:02:16.2]} 18. f3
{[%clk 0:02:17.7]} 18... Bf5 {[%clk 0:02:16.3]} 19. Bxf5 {[%clk 0:02:17]} 19...
gxf5 {[%clk 0:02:17.2]} 20. Be1 {[%clk 0:01:50.7]} 20... c5 {[%clk 0:01:54]} 21.
Bf2 {[%clk 0:01:48.6]} 21... Rfd8 {[%clk 0:01:54.4]} 22. Qb1 {[%clk 0:01:46.4]}
22... Qe6 {[%clk 0:01:47.1]} 23. e4 {[%clk 0:01:21.2]} 23... fxe4 {[%clk
0:01:36.5]} 24. fxe4 {[%clk 0:01:20.8]} 24... dxe4 {[%clk 0:01:35.8]} 25. d5
{[%clk 0:01:20.5]} 25... Qg6 {[%clk 0:01:32.7]} 26. Bxc5 {[%clk 0:01:19.8]}
26... e6 {[%clk 0:01:30.8]} 27. d6 {[%clk 0:01:13.6]} 27... Rd7 {[%clk
0:01:30.8]} 28. Be3 {[%clk 0:01:09]} 28... h5 {[%clk 0:01:18.7]} 29. Kh1 {[%clk
0:01:04.6]} 29... e5 {[%clk 0:01:11]} 30. c5 {[%clk 0:01:01.8]} 30... f5 {[%clk
0:01:11.5]} 31. Qc2 {[%clk 0:00:59.4]} 31... Kh7 {[%clk 0:01:11.8]} 32. Rd5
{[%clk 0:00:51.6]} 32... Rf8 {[%clk 0:01:04.6]} 33. Rf1 {[%clk 0:00:47.2]} 33...
Rdf7 {[%clk 0:00:53.6]} 34. Qg2 {[%clk 0:00:30.9]} 34... Qe6 {[%clk 0:00:52.3]}
35. Rfd1 {[%clk 0:00:28.7]} 35... Rd7 {[%clk 0:00:51.4]} 36. Qd2 {[%clk
0:00:24.4]} 36... h4 {[%clk 0:00:45.6]} 37. Qg2 {[%clk 0:00:16.6]} 37... Kg8
{[%clk 0:00:45.9]} 38. R5d2 {[%clk 0:00:03.7]} 38... f4 {[%clk 0:00:44.6]} 39.
gxf4 {[%clk 0:00:03.3]} 39... exf4 {[%clk 0:00:45.5]} 40. Bd4 {[%clk 0:00:03.5]}
40... e3 {[%clk 0:00:42.7]} 41. Re2 {[%clk 0:00:02.1]} 41... f3 {[%clk
0:00:42.9]} 0-1

[Event "Early-Titled-Tuesday-Blitz-September-12-2023"]
[Site "Chess.com"]
[Date "2023.09.12"]
[Round "7"]
[White "MightyGMpretender"]
[Black "Actuary44"]
[Result "1-0"]
[WhiteElo "2794"]
[BlackElo "2516"]
[TimeControl "180+1"]
[EndTime "9:17:49 PDT"]
[Termination "MightyGMpretender won by resignation"]

1. e4 {[%clk 0:03:00.9]} 1... b6 {[%clk 0:02:58.8]} 2. d4 {[%clk 0:02:59.8]}
2... Bb7 {[%clk 0:02:58.6]} 3. Bd3 {[%clk 0:03:00.5]} 3... e6 {[%clk 0:02:59.1]}
4. Nf3 {[%clk 0:02:56.8]} 4... Nf6 {[%clk 0:02:59.7]} 5. Qe2 {[%clk 0:02:56.5]}
5... d5 {[%clk 0:02:59.9]} 6. e5 {[%clk 0:02:53.9]} 6... Nfd7 {[%clk 0:03:00.2]}
7. c3 {[%clk 0:02:50.6]} 7... c5 {[%clk 0:03:00.4]} 8. a3 {[%clk 0:02:44.2]}
8... Nc6 {[%clk 0:03:00.6]} 9. b4 {[%clk 0:02:44]} 9... c4 {[%clk 0:03:00.7]}
10. Bc2 {[%clk 0:02:42.9]} 10... Qc7 {[%clk 0:03:01.3]} 11. a4 {[%clk
0:02:31.3]} 11... O-O-O {[%clk 0:03:01.3]} 12. Bf4 {[%clk 0:02:26.6]} 12... f5
{[%clk 0:02:58.1]} 13. Ng5 {[%clk 0:02:18.3]} 13... Re8 {[%clk 0:02:55.4]} 14.
h4 {[%clk 0:02:13.1]} 14... h6 {[%clk 0:02:48]} 15. Nf3 {[%clk 0:02:10.4]} 15...
Be7 {[%clk 0:02:42.7]} 16. h5 {[%clk 0:02:03.4]} 16... Reg8 {[%clk 0:02:36.1]}
17. Nbd2 {[%clk 0:01:59.1]} 17... g5 {[%clk 0:02:31.8]} 18. hxg6 {[%clk
0:01:59]} 18... Rxg6 {[%clk 0:02:31.9]} 19. g3 {[%clk 0:01:58.5]} 19... Qd8
{[%clk 0:02:21.5]} 20. Nf1 {[%clk 0:01:45.1]} 20... Nf8 {[%clk 0:02:06.2]} 21.
Ne3 {[%clk 0:01:43.5]} 21... Rgg8 {[%clk 0:02:03.8]} 22. Ng2 {[%clk 0:01:43.6]}
22... Ng6 {[%clk 0:02:02.9]} 23. Bd2 {[%clk 0:01:34.3]} 23... Bg5 {[%clk
0:01:59]} 24. Be3 {[%clk 0:01:17.6]} 24... Rf8 {[%clk 0:01:51.7]} 25. Kd2 {[%clk
0:01:14.6]} 25... Rhg8 {[%clk 0:01:37]} 26. Nf4 {[%clk 0:01:12]} 26... Bxf4
{[%clk 0:01:26.4]} 27. Bxf4 {[%clk 0:01:11.7]} 27... Nxf4 {[%clk 0:01:24.1]} 28.
gxf4 {[%clk 0:01:12.6]} 28... Rg4 {[%clk 0:01:23.4]} 29. Ke3 {[%clk 0:01:01.3]}
29... Rh8 {[%clk 0:01:17]} 30. Rh5 {[%clk 0:00:54.2]} 30... Ne7 {[%clk
0:01:14.1]} 31. Nh2 {[%clk 0:00:46]} 31... Qe8 {[%clk 0:01:00.1]} 32. Nxg4
{[%clk 0:00:34.4]} 32... Qxh5 {[%clk 0:00:58.9]} 33. Nf6 {[%clk 0:00:35]} 33...
Qh4 {[%clk 0:00:51.2]} 34. Qf3 {[%clk 0:00:31.6]} 34... Rf8 {[%clk 0:00:38.9]}
35. Rh1 {[%clk 0:00:31.1]} 35... Ng6 {[%clk 0:00:21.9]} 36. Rxh4 {[%clk
0:00:27.4]} 36... Nxh4 {[%clk 0:00:22.8]} 37. Qh5 {[%clk 0:00:22.3]} 37... Ng2+
{[%clk 0:00:22.5]} 38. Kd2 {[%clk 0:00:16.1]} 38... Nxf4 {[%clk 0:00:23]} 39.
Qxh6 {[%clk 0:00:16.3]} 39... Rxf6 {[%clk 0:00:21]} 40. exf6 {[%clk 0:00:14.9]}
1-0

[Event "Early-Titled-Tuesday-Blitz-September-12-2023"]
[Site "Chess.com"]
[Date "2023.09.12"]
[Round "7"]
[White "Al_Shima"]
[Black "EvgenyBurmakin"]
[Result "1-0"]
[WhiteElo "2336"]
[BlackElo "2270"]
[TimeControl "180+1"]
[EndTime "9:17:52 PDT"]
[Termination "Al_Shima won on time"]

1. b3 {[%clk 0:03:00.9]} 1... e5 {[%clk 0:02:58.8]} 2. Bb2 {[%clk 0:03:01.1]}
2... Nc6 {[%clk 0:02:59.4]} 3. e3 {[%clk 0:03:01.4]} 3... a6 {[%clk 0:02:59.8]}
4. Nf3 {[%clk 0:03:01]} 4... e4 {[%clk 0:03:00.2]} 5. Nd4 {[%clk 0:03:01.1]}
5... Nxd4 {[%clk 0:03:00.3]} 6. Bxd4 {[%clk 0:03:02]} 6... c5 {[%clk 0:02:59.5]}
7. Bb2 {[%clk 0:03:02.1]} 7... d5 {[%clk 0:02:59.9]} 8. d3 {[%clk 0:03:02.6]}
8... Nf6 {[%clk 0:02:56.8]} 9. Nd2 {[%clk 0:03:02]} 9... exd3 {[%clk 0:02:45.7]}
10. Bxd3 {[%clk 0:03:00.7]} 10... Bd6 {[%clk 0:02:42.7]} 11. c4 {[%clk
0:02:55.9]} 11... Be6 {[%clk 0:02:33.2]} 12. cxd5 {[%clk 0:02:55.6]} 12... Bxd5
{[%clk 0:02:33.5]} 13. e4 {[%clk 0:02:54.6]} 13... Bc6 {[%clk 0:02:21.3]} 14. e5
{[%clk 0:02:41]} 14... Bxe5 {[%clk 0:02:09.6]} 15. Qe2 {[%clk 0:02:40.9]} 15...
O-O {[%clk 0:01:57.3]} 16. Bxe5 {[%clk 0:02:40.1]} 16... Re8 {[%clk 0:01:50.5]}
17. O-O-O {[%clk 0:02:26.1]} 17... Rxe5 {[%clk 0:01:07.2]} 18. Qxe5 {[%clk
0:02:25.7]} 18... Qxd3 {[%clk 0:01:07.2]} 19. Nc4 {[%clk 0:02:25.1]} 19... Qg6
{[%clk 0:01:00.3]} 20. Qg3 {[%clk 0:02:20.9]} 20... Qxg3 {[%clk 0:00:44.6]} 21.
hxg3 {[%clk 0:02:21.8]} 21... Bxg2 {[%clk 0:00:44.7]} 22. Rhe1 {[%clk
0:02:20.5]} 22... b5 {[%clk 0:00:37.3]} 23. Ne3 {[%clk 0:02:15.5]} 23... Bf3
{[%clk 0:00:36.7]} 24. Rd2 {[%clk 0:02:12.2]} 24... g6 {[%clk 0:00:35.1]} 25.
Rc2 {[%clk 0:02:08.8]} 25... Rc8 {[%clk 0:00:33.7]} 26. Kb2 {[%clk 0:02:09]}
26... Kg7 {[%clk 0:00:30.6]} 27. Rec1 {[%clk 0:02:08.8]} 27... Ne4 {[%clk
0:00:25.7]} 28. Nf1 {[%clk 0:02:07]} 28... Bg4 {[%clk 0:00:15.7]} 29. Nh2 {[%clk
0:02:03.3]} 29... Be6 {[%clk 0:00:13.5]} 30. Re1 {[%clk 0:01:50.4]} 30... Bd5
{[%clk 0:00:11]} 31. Ng4 {[%clk 0:01:44.9]} 31... f5 {[%clk 0:00:09.3]} 32. Ne3
{[%clk 0:01:44.7]} 32... Bf7 {[%clk 0:00:06.8]} 33. Nf1 {[%clk 0:01:39.9]} 33...
c4 {[%clk 0:00:06.4]} 34. bxc4 {[%clk 0:01:36.6]} 34... bxc4 {[%clk 0:00:07.3]}
35. f3 {[%clk 0:01:32.1]} 35... c3+ {[%clk 0:00:07.8]} 36. Kc1 {[%clk
0:01:32.2]} 36... Nd6 {[%clk 0:00:06.9]} 37. Re3 {[%clk 0:01:31]} 37... Nb5
{[%clk 0:00:07.1]} 38. a4 {[%clk 0:01:30.6]} 38... Nd4 {[%clk 0:00:07.3]} 39.
Rh2 {[%clk 0:01:11.3]} 39... c2 {[%clk 0:00:07.5]} 40. Nd2 {[%clk 0:01:11.4]}
40... Rb8 {[%clk 0:00:04.1]} 41. Rd3 {[%clk 0:01:08.7]} 41... Nb3+ {[%clk
0:00:02.7]} 42. Nxb3 {[%clk 0:01:08.3]} 42... Rxb3 {[%clk 0:00:03.2]} 43. Rxb3
{[%clk 0:01:05.1]} 43... Bxb3 {[%clk 0:00:04.1]} 44. a5 {[%clk 0:01:05.5]} 44...
h5 {[%clk 0:00:03.9]} 45. f4 {[%clk 0:01:05.3]} 45... Kf6 {[%clk 0:00:04]} 46.
Re2 {[%clk 0:01:05.6]} 46... g5 {[%clk 0:00:02.1]} 47. fxg5+ {[%clk 0:01:00.1]}
47... Kxg5 {[%clk 0:00:03]} 48. Re3 {[%clk 0:00:58.1]} 48... Ba4 {[%clk
0:00:03]} 49. Rf3 {[%clk 0:00:55.4]} 49... h4 {[%clk 0:00:01.3]} 50. gxh4+
{[%clk 0:00:55.6]} 50... Kxh4 {[%clk 0:00:01.4]} 51. Rf4+ {[%clk 0:00:56]} 1-0

[Event "Early-Titled-Tuesday-Blitz-September-12-2023"]
[Site "Chess.com"]
[Date "2023.09.12"]
[Round "7"]
[White "Diaschess88"]
[Black "Fandorine"]
[Result "1-0"]
[WhiteElo "2675"]
[BlackElo "2900"]
[TimeControl "180+1"]
[EndTime "9:17:53 PDT"]
[Termination "Diaschess88 won by resignation"]

1. e4 {[%clk 0:03:00.9]} 1... e5 {[%clk 0:02:58.9]} 2. Nf3 {[%clk 0:03:00.1]}
2... Nc6 {[%clk 0:02:59.6]} 3. Bb5 {[%clk 0:03:00.3]} 3... a6 {[%clk 0:02:59.8]}
4. Ba4 {[%clk 0:03:00.7]} 4... Nf6 {[%clk 0:02:59.7]} 5. O-O {[%clk 0:03:00.3]}
5... Be7 {[%clk 0:03:00]} 6. Re1 {[%clk 0:02:55.9]} 6... b5 {[%clk 0:03:00.5]}
7. Bb3 {[%clk 0:02:54.4]} 7... d6 {[%clk 0:03:01.1]} 8. c3 {[%clk 0:02:54.3]}
8... O-O {[%clk 0:03:01.8]} 9. h3 {[%clk 0:02:54]} 9... Na5 {[%clk 0:03:01.4]}
10. Bc2 {[%clk 0:02:54.5]} 10... c5 {[%clk 0:03:02.2]} 11. d4 {[%clk 0:02:54.9]}
11... Nd7 {[%clk 0:03:02.8]} 12. Nbd2 {[%clk 0:02:52.6]} 12... exd4 {[%clk
0:03:02.6]} 13. cxd4 {[%clk 0:02:53.5]} 13... Nc6 {[%clk 0:03:03.3]} 14. d5
{[%clk 0:02:53.2]} 14... Nce5 {[%clk 0:03:01.9]} 15. a4 {[%clk 0:02:49.3]} 15...
Rb8 {[%clk 0:03:00.7]} 16. Nxe5 {[%clk 0:02:31.9]} 16... Nxe5 {[%clk 0:03:00.8]}
17. f4 {[%clk 0:02:32.6]} 17... Ng6 {[%clk 0:03:01]} 18. Nf3 {[%clk 0:02:33.3]}
18... Bh4 {[%clk 0:03:00.9]} 19. Nxh4 {[%clk 0:02:24.7]} 19... Qxh4 {[%clk
0:02:59.8]} 20. Rf1 {[%clk 0:02:25.3]} 20... b4 {[%clk 0:02:18.1]} 21. Qf3
{[%clk 0:02:17.4]} 21... a5 {[%clk 0:02:05.8]} 22. Be3 {[%clk 0:02:07.6]} 22...
Ba6 {[%clk 0:01:51.1]} 23. Rf2 {[%clk 0:01:56.1]} 23... b3 {[%clk 0:01:49]} 24.
Bd1 {[%clk 0:01:54.7]} 24... f5 {[%clk 0:01:45.5]} 25. exf5 {[%clk 0:01:29.7]}
25... Rxf5 {[%clk 0:01:45.3]} 26. Qe4 {[%clk 0:01:30.4]} 26... Rff8 {[%clk
0:01:13]} 27. Bg4 {[%clk 0:01:22.1]} 27... Kh8 {[%clk 0:01:10.5]} 28. Re1 {[%clk
0:01:04.8]} 28... Qd8 {[%clk 0:00:51.8]} 29. Bd2 {[%clk 0:00:58.8]} 29... Rb4
{[%clk 0:00:40.1]} 30. Bxb4 {[%clk 0:00:58]} 30... axb4 {[%clk 0:00:41]} 31. Bf5
{[%clk 0:00:53.7]} 31... c4 {[%clk 0:00:27.7]} 32. Bxg6 {[%clk 0:00:43.8]} 32...
hxg6 {[%clk 0:00:27.9]} 33. Qd4 {[%clk 0:00:37.7]} 33... Qc7 {[%clk 0:00:16.7]}
34. f5 {[%clk 0:00:33.5]} 34... gxf5 {[%clk 0:00:15.4]} 35. Qh4+ {[%clk
0:00:32.4]} 35... Kg8 {[%clk 0:00:15.4]} 36. Re7 {[%clk 0:00:33.3]} 36... Qd8
{[%clk 0:00:09.3]} 37. Rfe2 {[%clk 0:00:30.2]} 37... c3 {[%clk 0:00:05.1]} 38.
Qg5 {[%clk 0:00:30.6]} 1-0